bitfinex-derivatives/quotes_SOLF0:USTF0_20240912
["timestamp","ask_amount","ask_price","bid_price","bid_amount"]
[1726107808756,11.36,135.29,135.23,14.0659]
[1726107809664,11.36,135.29,135.25,3.3264]
[1726107809863,11.36,135.29,135.23,14.0659]
[1726107810061,11.36,135.29,135.23,2.7059]
[1726107810262,11.36,135.29,135.23,14.0659]
[1726107810865,11.36,135.29,135.26,3.3264]
[1726107811569,11.36,135.29,135.27,3.3261]
[1726107811769,14.6852,135.31,135.27,3.3261]
[1726107812071,11.36,135.32,135.28,3.3257]
[1726107812273,11.36,135.32,135.23,2.7059]
[1726107812274,11.36,135.33,135.26,11.36]
[1726107812471,18.96477463,135.37,135.29,11.36]
[1726107812769,11.36,135.36,135.29,11.36]
[1726107812974,11.36,135.36,135.31,11.36]
[1726107813175,11.36,135.36,135.33,3.3246]
[1726107813478,11.36,135.38,135.32,11.36]
[1726107813865,14.6834,135.38,135.34,3.3243]
[1726107814176,11.36,135.37,135.31,1.4072]
[1726107814780,14.6837,135.37,135.33,3.3246]
[1726107815570,11.36,135.37,135.31,1.4072]
[1726107815776,11.36,135.37,135.32,11.36]
[1726107817369,11.36,135.37,135.33,3.3245]
[1726107817680,11.36,135.37,135.31,1.4072]
[1726107817681,14.6839,135.37,135.31,1.4072]
[1726107817881,11.36,135.36,135.31,1.4072]
[1726107818180,11.36,135.35,135.3,1.3964]
[1726107818775,14.6843,135.35,135.3,4.7217]
[1726107818973,11.36,135.35,135.3,4.7217]
[1726107819378,11.36,135.35,135.31,3.3251]
[1726107821381,11.36,135.35,135.3,1.3964]
[1726107821382,14.6844,135.35,135.3,4.7218]
[1726107821583,11.36,135.33,135.28,1.4026]
[1726107821779,11.36,135.33,135.27,12.7359]
[1726107821780,11.36,135.33,135.27,1.3759]
[1726107821979,11.36,135.32,135.28,3.3257]
[1726107822776,11.36,135.29,135.2,2.7157]
[1726107822976,11.36,135.29,135.22,11.36]
[1726107823482,11.36,135.29,135.23,11.36]
[1726107823683,11.36,135.3,135.23,11.36]
[1726107824390,11.36,135.29,135.21,1.3739]
[1726107824585,11.36,135.27,135.21,12.7339]
[1726107824982,14.6863,135.27,135.22,3.3272]
[1726107825183,11.36,135.27,135.21,1.3739]
[1726107825392,3.3267,135.25,135.2,4.7246]
[1726107825577,11.36,135.26,135.2,1.397]
[1726107826381,18.97081574,135.37,135.2,1.397]
[1726107826586,1.17389349,135.36,135.2,1.397]
[1726107826790,11.36,135.26,135.21,11.36]
[1726107827293,11.36,135.27,135.22,11.36]
[1726107827596,11.36,135.29,135.22,11.36]
[1726107828091,3.3259,135.28,135.23,3.3269]
[1726107828888,3.3257,135.29,135.2,19.137]
[1726107829196,17.74,135.3,135.24,3.3268]
[1726107829396,17.74,135.3,135.2,19.137]
[1726107829397,17.74,135.26,135.2,1.397]
[1726107829597,21.0664,135.26,135.2,4.7248]
[1726107830292,21.0664,135.26,135.21,3.3275]
[1726107830694,17.74,135.26,135.2,1.397]
[1726107830898,0.4272,135.29,135.23,3.3271]
[1726107831193,0.4272,135.29,135.2,1.397]
[1726107831497,0.4272,135.29,135.2,19.137]
[1726107831689,3.3261,135.28,135.2,20.5218]
[1726107832395,3.3262,135.27,135.22,3.3273]
[1726107832598,0.4272,135.29,135.2,20.5218]
[1726107833096,3.3264,135.26,135.21,3.3274]
[1726107833692,3.3267,135.25,135.2,6.1096]
[1726107833892,17.74,135.26,135.2,2.7818]
[1726107834912,3.327,135.24,135.2,6.1096]
[1726107836307,3.3267,135.25,135.2,6.1096]
[1726107837605,3.3269,135.24,135.2,6.1096]
[1726107839209,17.74,135.26,135.15,17.74]
[1726107839503,17.74,135.24,135.16,2.7896]
[1726107839898,3.3273,135.23,135.18,3.3282]
[1726107840310,3.3273,135.23,135.16,2.7896]
[1726107840600,3.3273,135.23,135.18,3.3283]
[1726107841201,3.3273,135.23,135.19,3.3281]
[1726107848113,14.6873,135.23,135.19,3.3281]
[1726107849308,11.36,135.2,135.16,1.4255]
[1726107849511,11.36,135.19,135.16,1.4255]
[1726107850113,14.6881,135.19,135.16,1.4255]
[1726107851013,11.36,135.19,135.17,3.3284]
[1726107851215,0.4272,135.29,135.16,1.4255]
[1726107851511,11.36,135.2,135.17,3.3285]
[1726107852812,11.36,135.19,135.16,4.7543]
[1726107853022,11.36,135.19,135.16,1.4255]
[1726107853521,11.36,135.18,135.12,1.3714]
[1726107853715,11.36,135.18,135.12,2.6848]
[1726107854414,11.36,135.18,135.15,3.3291]
[1726107855022,11.36,135.18,135.12,2.6848]
[1726107855023,11.36,135.19,135.16,3.3287]
[1726107855222,11.36,135.19,135.13,11.36]
[1726107855517,11.36,135.19,135.16,3.3287]
[1726107856122,11.36,135.19,135.17,3.3286]
[1726107856320,0.4272,135.29,135.15,11.36]
[1726107856617,11.36,135.23,135.17,11.36]
[1726107856818,0.4272,135.29,135.18,2.6852]
[1726107857025,11.36,135.24,135.18,15.3469]
[1726107857822,14.687,135.24,135.2,3.3277]
[1726107858022,0.4272,135.29,135.18,15.3469]
[1726107858217,11.36,135.25,135.18,15.3469]
[1726107858417,14.6867,135.25,135.2,3.3278]
[1726107858620,11.36,135.24,135.2,3.3278]
[1726107861126,3.327,135.24,135.19,3.328]
[1726107861417,11.36,135.21,135.18,1.3441]
[1726107861620,11.36,135.21,135.18,4.6724]
[1726107863522,11.36,135.21,135.16,1.3404]
[1726107863523,14.6877,135.21,135.16,1.3404]
[1726107863723,11.36,135.21,135.16,1.3404]
[1726107865026,11.36,135.21,135.17,3.3285]
[1726107865323,11.36,135.21,135.16,1.3404]
[1726107865519,11.36,135.2,135.16,1.3404]
[1726107865726,11.36,135.2,135.16,3.3287]
[1726107866623,14.6879,135.2,135.16,3.3287]
[1726107868019,11.36,135.2,135.16,3.3287]
[1726107868929,11.36,135.18,135.15,3.329]
[1726107873735,14.6885,135.18,135.13,4.7098]
[1726107873932,14.6885,135.18,135.13,1.3804]
[1726107874741,14.6885,135.18,135.14,3.3292]
[1726107874926,11.36,135.17,135.14,3.3292]
[1726107877041,11.36,135.17,135.13,4.7099]
[1726107877338,11.36,135.17,135.13,1.3804]
[1726107877523,11.36,135.17,135.14,3.3292]
[1726107877722,3.3289,135.16,135.12,1.3273]
[1726107877931,11.36,135.13,135.02,1.2857]
[1726107878135,11.36,135.11,135.02,1.2857]
[1726107878638,11.36,135.11,135.04,11.36]
[1726107879138,11.36,135.11,135.08,3.3307]
[1726107880838,11.36,135.12,135.09,3.3305]
[1726107881234,0.4287,135.24,135.11,3.3301]
[1726107881431,1.17504312,135.23,135.07,15.5531]
[1726107881640,11.36,135.14,135.07,15.5531]
[1726107882137,11.36,135.14,135.11,3.33]
[1726107883238,11.36,135.14,135.07,15.5531]
[1726107883435,11.36,135.13,135.07,4.1931]
[1726107883830,14.6897,135.13,135.07,4.1931]
[1726107884139,11.36,135.11,135.07,4.1931]
[1726107884539,11.36,135.11,135.08,3.3307]
[1726107888142,11.36,135.1,135.07,6.1387]
[1726107889540,11.36,135.1,135.08,3.3308]
[1726107890734,11.36,135.1,135.07,6.1387]
[1726107891040,11.36,135.1,135.07,4.7465]
[1726107891246,11.36,135.1,135.07,3.331]
[1726107891449,11.36,135.1,135.06,3.3312]
[1726107892544,11.36,135.1,135.04,2.588]
[1726107893344,11.36,135.1,135.07,3.3309]
[1726107894951,18.97268758,135.22,135.05,11.36]
[1726107895147,20.14808797,135.21,135.07,11.36]
[1726107895345,11.36,135.13,135.11,3.3299]
[1726107895851,11.36,135.12,135.05,1.3099]
[1726107896040,11.36,135.12,135.05,12.6699]
[1726107896748,11.36,135.12,135.09,3.3304]
[1726107898244,3.3296,135.13,135.09,3.3304]
[1726107898447,11.36,135.12,135.09,3.3304]
[1726107899647,11.36,135.14,135.07,11.36]
[1726107900054,11.36,135.14,135.11,3.3299]
[1726107901753,11.36,135.13,135.1,3.3303]
[1726107902349,11.36,135.13,135.11,3.3301]
[1726107906261,11.36,135.12,135.05,1.3099]
[1726107906561,11.36,135.12,135.05,12.6699]
[1726107907064,11.36,135.1,135.08,3.3306]
[1726107907860,0.4291,135.19,135.06,11.36]
[1726107908161,11.36,135.13,135.06,11.36]
[1726107908361,11.36,135.11,135.08,3.3306]
[1726107908559,11.36,135.11,135.05,12.6699]
[1726107908862,11.36,135.1,135.05,1.3099]
[1726107909054,0.4291,135.19,135.05,1.3099]
[1726107909055,11.36,135.09,135.05,1.3099]
[1726107909663,11.36,135.09,135.06,3.3311]
[1726107909865,11.36,135.09,135.05,1.3099]
[1726107910159,11.36,135.09,135.06,3.3313]
[1726107910348,11.36,135.09,135.05,1.3099]
[1726107911860,11.36,135.09,135.06,3.3311]
[1726107914253,11.36,135.08,134.98,3.3332]
[1726107914461,11.36,135.02,134.95,2.602]
[1726107914652,0.4295,135.09,134.95,2.602]
[1726107914653,11.36,135.03,134.97,11.36]
[1726107915163,11.36,135.03,134.99,3.3328]
[1726107915557,11.36,135.03,134.97,11.36]
[1726107916566,11.36,135.02,134.95,13.962]
[1726107917462,0.4295,135.09,134.98,3.3333]
[1726107917666,11.36,135.02,134.98,3.3333]
[1726107918070,11.36,135.02,134.95,2.602]
[1726107918259,11.36,135.02,134.95,13.962]
[1726107919060,11.36,135.02,134.97,3.3335]
[1726107919256,11.36,135.01,134.95,2.602]
[1726107919458,11.36,135.01,134.97,3.3335]
[1726107920465,11.36,135.01,134.95,2.602]
[1726107921468,11.36,135.01,134.97,3.3333]
[1726107921674,11.36,135.01,134.95,2.602]
[1726107921974,11.36,135.01,134.98,3.3333]
[1726107922768,0.4295,135.09,134.95,2.602]
[1726107922976,11.36,135.01,134.95,13.962]
[1726107924277,11.36,135.01,134.98,3.3333]
[1726107924974,0.4295,135.09,134.98,11.36]
[1726107924975,11.36,135.04,134.98,11.36]
[1726107925369,11.36,135.04,135.0,3.3326]
[1726107925671,11.36,135.04,134.98,11.36]
[1726107926766,0.4295,135.09,134.99,11.36]
[1726107926970,11.36,135.07,135.0,15.2749]
[1726107927277,11.36,135.07,135.04,3.3316]
[1726107927576,11.36,135.07,135.0,15.2749]
[1726107927964,11.36,135.07,135.03,3.3318]
[1726107928872,11.36,135.07,135.04,3.3317]
[1726107929278,0.4286,135.12,135.04,3.3317]
[1726107929466,11.36,135.06,135.04,3.3317]
[1726107929863,11.36,135.06,135.0,3.9149]
[1726107930673,11.36,135.06,135.03,3.332]
[1726107931478,3.331,135.08,135.03,3.332]
[1726107931778,11.36,135.06,135.03,3.332]
[1726107932587,11.36,135.06,135.04,3.3316]
[1726107933575,11.36,135.05,135.03,3.332]
[1726107934878,11.36,135.04,135.0,3.9149]
[1726107935678,11.36,135.05,135.0,3.9149]
[1726107936085,11.36,135.05,135.03,3.3319]
[1726107937182,11.36,135.04,135.03,3.3319]
[1726107938381,11.36,135.04,135.0,3.9149]
[1726107938599,11.36,135.02,135.0,3.9149]
[1726107938980,11.36,135.02,135.01,3.3325]
[1726107941383,11.36,135.03,135.01,3.3325]
[1726107944090,11.36,135.03,135.0,3.3327]
[1726107944792,11.36,135.03,135.01,3.3325]
[1726107944985,3.3319,135.04,135.01,3.3325]
[1726107945187,11.36,135.02,135.01,3.3325]
[1726107947090,11.36,135.02,135.0,3.3327]
[1726107947595,11.36,135.02,134.99,3.3329]
[1726107948205,11.36,135.01,134.99,3.3329]
[1726107949404,3.3319,135.04,135.0,3.3328]
[1726107949707,11.36,135.02,135.0,3.3328]
[1726107950904,11.36,135.02,134.99,3.3329]
[1726107956497,11.36,135.02,134.97,3.9877]
[1726107956699,11.36,135.02,135.0,3.3327]
[1726107957009,11.36,135.02,134.97,3.9877]
[1726107957411,11.36,135.02,134.99,3.3329]
[1726107958509,3.3319,135.04,134.97,3.9877]
[1726107958806,11.36,135.02,134.97,3.9877]
[1726107959801,11.36,135.02,135.0,3.3327]
[1726107960202,11.36,135.02,134.97,3.9877]
[1726107960497,11.36,135.02,134.99,3.333]
[1726107961602,11.36,135.02,135.0,3.3328]
[1726107961809,11.36,135.03,135.0,3.3328]
[1726107962209,11.36,135.03,135.01,3.3325]
[1726107962717,0.4286,135.12,134.99,11.36]
[1726107962913,11.36,135.06,134.99,11.36]
[1726107963101,0.4286,135.12,134.98,11.36]
[1726107963102,11.36,135.05,134.98,11.36]
[1726107963711,11.36,135.05,135.01,3.3325]
[1726107963913,11.36,135.05,134.98,11.36]
[1726107964108,11.36,135.03,135.0,3.3326]
[1726107966819,11.36,135.03,135.01,3.3325]
[1726107967118,0.4286,135.12,134.97,15.3477]
[1726107967308,11.36,135.05,135.01,3.3324]
[1726107968312,11.36,135.05,135.02,3.3323]
[1726107971115,0.4286,135.12,135.04,3.3317]
[1726107971310,11.36,135.07,135.0,11.36]
[1726107971618,11.36,135.06,135.03,3.332]
[1726107971916,11.36,135.06,134.99,11.36]
[1726107972516,11.36,135.04,134.98,11.36]
[1726107972810,11.36,135.04,135.01,3.3324]
[1726107974213,3.3316,135.05,135.01,3.3324]
[1726107974413,11.36,135.04,135.01,3.3324]
[1726107975826,3.3313,135.06,135.02,3.3322]
[1726107976113,0.4286,135.12,134.99,11.36]
[1726107976421,11.36,135.06,135.04,3.3317]
[1726107976812,11.36,135.06,135.01,11.36]
[1726107977814,11.36,135.06,135.03,3.3318]
[1726107978425,11.36,135.06,135.04,3.3317]
[1726107981326,11.36,135.11,135.05,11.36]
[1726107981516,11.36,135.11,135.06,1.2891]
[1726107981922,11.36,135.11,135.07,1.3324]
[1726107982115,11.36,135.11,135.02,1.3267]
[1726107982116,11.36,135.09,135.02,1.3267]
[1726107982316,11.36,135.08,135.05,3.3314]
[1726107983121,11.36,135.08,135.03,1.3324]
[1726107983524,11.36,135.08,135.06,3.3313]
[1726107984817,11.36,135.08,135.05,3.3315]
[1726107985127,11.36,135.08,135.03,1.3324]
[1726107986629,11.36,135.08,135.05,3.3313]
[1726107987631,11.36,135.08,135.03,1.3324]
[1726107987928,11.36,135.06,135.03,1.3324]
[1726107988835,11.36,135.06,135.03,4.6643]
[1726107989531,11.36,135.06,135.04,3.3318]
[1726107992238,11.36,135.06,135.03,4.6644]
[1726107992930,11.36,135.06,135.04,3.3317]
[1726107994137,11.36,135.06,135.02,1.3267]
[1726107994429,11.36,135.07,135.02,1.3267]
[1726107994931,11.36,135.09,135.02,12.6867]
[1726107995122,11.36,135.09,135.03,11.36]
[1726107996030,11.36,135.09,135.06,3.3312]
[1726107997029,11.36,135.09,135.07,3.331]
[1726107999330,11.36,135.09,135.03,11.36]
[1726108000830,11.36,135.09,135.06,3.3313]
[1726108004531,11.36,135.1,135.04,11.36]
[1726108004731,3.33,135.12,135.06,11.36]
[1726108004942,14.69,135.12,135.06,11.36]
[1726108005236,14.69,135.12,135.08,3.3306]
[1726108011137,19.30041094,135.19,135.05,11.36]
[1726108011138,11.36,135.1,135.05,11.36]
[1726108011342,11.36,135.1,135.04,11.36]
[1726108011940,11.36,135.1,135.07,3.3311]
[1726108012351,11.36,135.1,135.08,3.3307]
[1726108012541,11.36,135.12,135.05,11.36]
[1726108012740,11.36,135.12,135.06,1.404]
[1726108013238,14.6899,135.12,135.08,3.3307]
[1726108014632,11.36,135.1,135.07,3.331]
[1726108020241,14.69,135.12,135.06,12.764]
[1726108020646,3.3301,135.11,135.06,12.764]
[1726108020949,11.36,135.11,135.06,1.404]
[1726108021147,14.6908,135.08,135.04,3.3316]
[1726108021448,14.6908,135.08,135.02,1.3267]
[1726108021449,11.36,135.08,135.02,1.3267]
[1726108022152,11.36,135.08,135.03,11.36]
[1726108022351,19.30041094,135.19,135.03,11.36]
[1726108022352,11.36,135.09,135.06,3.3312]
[1726108023450,11.36,135.09,135.05,3.3315]
[1726108023942,11.36,135.08,135.04,3.3317]
[1726108024344,11.36,135.08,135.03,11.36]
[1726108025744,11.36,135.08,135.05,3.3314]
[1726108028558,14.6909,135.08,135.04,3.3317]
[1726108029646,11.36,135.08,135.05,3.3315]
[1726108030655,14.6909,135.08,135.04,3.3318]
[1726108032650,11.36,135.08,135.04,3.3318]
[1726108034352,11.36,135.06,135.01,1.3967]
[1726108034555,11.36,135.04,135.01,1.3967]
[1726108034757,11.36,135.04,135.02,3.3321]
[1726108036556,11.36,135.04,135.01,4.7291]
[1726108037056,11.36,135.04,135.01,1.3967]
[1726108037259,14.6915,135.06,135.01,1.3967]
[1726108037851,14.6915,135.06,135.02,3.3322]
[1726108039356,11.36,135.04,135.02,3.3322]
[1726108039553,11.36,135.04,134.98,11.36]
[1726108041253,11.36,135.04,135.0,3.3325]
[1726108041661,11.36,135.04,134.98,11.36]
[1726108042961,11.36,135.04,135.01,3.3325]
[1726108043966,11.36,135.04,135.0,3.3327]
[1726108045067,11.36,135.03,135.0,3.3327]
[1726108045269,11.36,135.03,135.01,3.3325]
[1726108046163,3.3314,135.06,135.02,3.3323]
[1726108046367,14.6914,135.06,135.02,3.3323]
[1726108047464,11.36,135.06,135.03,3.332]
[1726108049370,11.36,135.07,135.04,3.3317]
[1726108049872,11.36,135.08,135.04,3.3317]
[1726108053266,3.3306,135.09,135.05,3.3315]
[1726108053462,11.36,135.08,135.05,3.3315]
[1726108053669,18.86931094,135.13,135.07,11.36]
[1726108053862,165.0,135.23,135.01,2.6469]
[1726108053863,0.4294,135.18,135.1,11.36]
[1726108054070,11.36,135.15,135.1,11.36]
[1726108054469,11.36,135.14,135.08,11.36]
[1726108054770,11.36,135.13,135.07,11.36]
[1726108054977,11.36,135.11,135.06,11.36]
[1726108055279,11.36,135.09,135.02,12.731]
[1726108055570,11.36,135.06,135.02,1.371]
[1726108055770,11.36,135.06,135.01,2.6469]
[1726108056877,11.36,135.05,135.01,2.6469]
[1726108057271,11.36,135.08,135.06,3.3312]
[1726108057679,11.36,135.1,135.03,11.36]
[1726108057874,14.6903,135.1,135.05,3.3315]
[1726108058282,14.6903,135.1,135.03,11.36]
[1726108058586,11.36,135.09,135.03,11.36]
[1726108059083,11.36,135.1,135.06,3.3313]
[1726108060279,11.36,135.1,135.07,3.331]
[1726108060480,11.36,135.11,135.07,3.331]
[1726108060984,11.36,135.13,135.09,3.3305]
[1726108061186,14.6896,135.13,135.09,3.3305]
[1726108063182,11.36,135.13,135.1,3.3303]
[1726108063384,0.4294,135.18,135.1,11.36]
[1726108063687,11.36,135.16,135.1,11.36]
[1726108064084,3.3291,135.15,135.1,14.6901]
[1726108064689,3.3291,135.15,135.11,3.3299]
[1726108065181,11.36,135.16,135.1,11.36]
[1726108065389,11.36,135.16,135.11,11.36]
[1726108065683,14.6888,135.17,135.11,11.36]
[1726108065880,18.86788258,135.22,135.12,11.36]
[1726108065881,11.36,135.19,135.12,11.36]
[1726108066086,11.36,135.17,135.12,11.36]
[1726108066284,11.36,135.17,135.11,11.36]
[1726108066285,3.3288,135.16,135.11,11.36]
[1726108066481,11.36,135.17,135.11,11.36]
[1726108066880,14.6887,135.17,135.12,3.3296]
[1726108067078,11.36,135.17,135.11,11.36]
[1726108068181,14.6888,135.17,135.12,3.3298]
[1726108068383,11.36,135.17,135.12,3.3298]
[1726108069798,3.3289,135.16,135.12,3.3298]
[1726108071092,11.36,135.16,135.1,11.36]
[1726108071490,11.36,135.14,135.1,11.36]
[1726108071683,14.6895,135.14,135.1,11.36]
[1726108072089,11.36,135.14,135.09,3.3305]
[1726108072290,3.3296,135.13,135.09,3.3305]
[1726108072691,14.6894,135.14,135.08,11.36]
[1726108072892,0.4292,135.22,135.1,11.36]
[1726108072893,11.36,135.16,135.1,11.36]
[1726108073590,11.36,135.13,135.08,11.36]
[1726108074196,3.3299,135.12,135.08,11.36]
[1726108074399,3.3299,135.12,135.02,1.3258]
[1726108074597,3.3299,135.12,135.07,14.6909]
[1726108074899,3.3299,135.12,135.07,11.36]
[1726108075399,14.6896,135.13,135.09,3.3305]
[1726108076597,14.6896,135.13,135.08,3.3307]
[1726108077903,18.86788258,135.2,135.02,1.3258]
[1726108078096,18.86788258,135.2,135.08,2.7702]
[1726108078291,11.36,135.17,135.11,14.69]
[1726108078800,11.36,135.17,135.11,11.36]
[1726108079305,3.3293,135.15,135.11,11.36]
[1726108080906,3.3293,135.15,135.08,2.7702]
[1726108080907,11.36,135.15,135.09,3.3305]
[1726108081107,11.36,135.14,135.08,2.7702]
[1726108081601,11.36,135.11,135.02,1.3258]
[1726108081799,11.36,135.08,135.02,1.3258]
[1726108081995,11.36,135.08,135.02,3.3323]
[1726108082205,11.36,135.08,135.01,11.36]
[1726108083100,11.36,135.09,135.03,11.36]
[1726108083308,0.4279,135.13,135.03,11.36]
[1726108083610,11.36,135.1,135.03,11.36]
[1726108084102,3.3307,135.09,135.04,3.3316]
[1726108084808,14.6909,135.08,135.03,3.332]
[1726108086205,14.6911,135.07,135.02,3.3322]
[1726108087308,14.6911,135.07,135.03,3.332]
[1726108088805,11.36,135.07,135.03,3.332]
[1726108091109,14.6911,135.07,135.03,3.332]
[1726108091707,14.6911,135.07,135.02,3.3322]
[1726108091906,3.3313,135.06,135.02,3.3322]
[1726108093808,3.3316,135.05,135.01,4.71]
[1726108095115,14.6914,135.06,135.02,3.3322]
[1726108096615,14.6911,135.07,135.03,3.332]
[1726108096817,3.3311,135.07,135.03,3.332]
[1726108098113,11.36,135.08,135.04,3.3318]
[1726108098303,0.4279,135.13,135.04,11.36]
[1726108098304,11.36,135.1,135.04,11.36]
[1726108098709,3.3306,135.09,135.05,3.3315]
[1726108100618,3.3306,135.09,135.04,14.6917]
[1726108101012,3.3306,135.09,135.04,3.3317]
[1726108102620,11.36,135.1,135.05,3.3313]
[1726108103717,3.3306,135.09,135.05,3.3313]
[1726108104719,14.6904,135.1,135.05,3.3313]
[1726108105319,11.36,135.1,135.05,3.3313]
[1726108106119,14.6904,135.1,135.05,3.3313]
[1726108106323,18.86639559,135.18,135.07,11.36]
[1726108106516,18.86639559,135.18,135.01,1.3776]
[1726108106517,11.36,135.15,135.01,1.3776]
[1726108106823,11.36,135.12,135.01,1.3776]
[1726108107221,11.36,135.1,135.06,3.3311]
[1726108109033,11.36,135.1,135.07,3.331]
[1726108110125,3.3302,135.11,135.07,3.331]
[1726108111525,14.6899,135.12,135.08,3.3308]
[1726108112132,11.36,135.12,135.08,3.3308]
[1726108113532,11.36,135.12,135.07,3.331]
[1726108113734,0.4305,135.2,135.05,2.6552]
[1726108113735,11.36,135.1,135.05,2.6552]
[1726108114128,14.6904,135.1,135.06,3.3313]
[1726108114637,11.36,135.1,135.05,5.9867]
[1726108114841,11.36,135.1,135.05,2.6552]
[1726108115327,11.36,135.12,135.06,3.3311]
[1726108115632,11.36,135.12,135.05,2.6552]
[1726108115835,3.3302,135.11,135.07,3.331]
[1726108118938,11.36,135.09,135.05,5.9867]
[1726108119538,14.6906,135.09,135.05,5.9867]
[1726108120630,3.331,135.08,135.04,3.3317]
[1726108121037,0.4305,135.2,135.02,3.3323]
[1726108121038,11.36,135.07,135.02,3.3323]
[1726108121352,14.6911,135.07,135.01,12.7376]
[1726108121639,11.36,135.07,135.03,3.3319]
[1726108122040,11.36,135.07,135.01,12.7376]
[1726108122939,11.36,135.07,135.04,3.3317]
[1726108126645,11.36,135.09,135.02,11.36]
[1726108126940,11.36,135.1,135.04,11.36]
[1726108127145,0.4297,135.15,135.08,3.3306]
[1726108127443,11.36,135.14,135.08,11.36]
[1726108128335,11.36,135.14,135.1,3.3303]
[1726108128941,3.3291,135.15,135.1,3.3303]
[1726108129149,11.36,135.15,135.09,3.3304]
[1726108130350,11.36,135.13,135.09,3.3304]
[1726108130538,11.36,135.13,135.1,3.3303]
[1726108130854,11.36,135.16,135.1,11.36]
[1726108131746,11.36,135.14,135.09,3.3305]
[1726108132537,7.0764,135.14,135.13,3.3296]
[1726108132742,20.66245892,135.22,135.13,3.3296]
[1726108132948,20.66245892,135.22,135.13,14.6896]
[1726108132949,11.36,135.19,135.13,14.6896]
[1726108133447,11.36,135.19,135.14,3.3293]
[1726108134251,11.36,135.19,135.13,3.3295]
[1726108136145,1.4045,135.21,135.13,3.3295]
[1726108136350,11.36,135.18,135.13,3.3295]
[1726108137854,11.36,135.18,135.12,14.6897]
[1726108139362,11.36,135.18,135.13,3.3295]
[1726108141054,11.36,135.18,135.12,14.6897]
[1726108141255,11.36,135.18,135.12,11.36]
[1726108141961,11.36,135.18,135.13,3.3296]
[1726108143162,11.36,135.19,135.13,11.36]
[1726108144961,11.36,135.19,135.15,3.3291]
[1726108146663,11.36,135.19,135.16,3.3288]
[1726108147163,12.7645,135.21,135.16,3.3288]
[1726108147362,11.36,135.21,135.17,3.3285]
[1726108147959,12.7258,135.22,135.17,3.3285]
[1726108152565,12.7258,135.22,135.18,3.3283]
[1726108152758,1.3658,135.22,135.18,3.3283]
[1726108154361,11.36,135.23,135.18,3.3283]
[1726108154571,11.36,135.24,135.18,3.3283]
[1726108154866,11.36,135.24,135.17,3.3285]
[1726108155071,11.36,135.22,135.15,11.36]
[1726108155967,11.36,135.22,135.1,2.6983]